Workbook

Sheet DVV 12 auf 22 Einzelspiele
A1: ="DVV-Spielplan: "&N1 -> DVV-Spielplan: Dritte und Regionalliga Frauen/Männer | G1: Saison 2025/26 | K1: Hinrunde | N1: Dritte und Regionalliga Frauen/Männer
K2: Halle | M2: 1. | N2: 20./21. Sept. 2025 | O2: 1 | P2: Team 1
A3: 1.Spieltag | D3: =$N$2 -> 20./21. Sept. 2025 | M3: 2. | N3: 27. Sept. 2025 (Sonntag Halbfinale WVV-Pokal) | O3: 2 | P3: Team 2
A4: 1 | B4: 1-11 | C4: > | D4: =VLOOKUP(LEFT($B4,SEARCH("-",$B4)-1),$O$2:$P$13,2,0) -> Team 1 | E4: - | F4: =VLOOKUP(RIGHT($B4,LEN($B4)-SEARCH("-",$B4)),$O$2:$P$13,2,0) -> Team 11 | G4: Sa/So | I4: __.__ | J4: Uhr | K4: __ | M4: 3. | N4: 04./05. Okt. 2025 | O4: 3 | P4: Team 3
A5: =A4+1 -> 2 | B5: 3-8 | C5: > | D5: Team 3 | E5: - | F5: Team 8 | G5: Sa/So | I5: __.__ | J5: Uhr | K5: __ | M5: 4. | N5: 11. Okt. 2025 (Sonntag WVV-Pokalfinale) | O5: 4 | P5: Team 4
A6: =A5+1 -> 3 | B6: 5-6 | C6: > | D6: Team 5 | E6: - | F6: Team 6 | G6: Sa/So | I6: __.__ | J6: Uhr | K6: __ | M6: 5. | N6: 18./19. Okt. 2025 | O6: 5 | P6: Team 5
A7: =A6+1 -> 4 | B7: 7-4 | C7: > | D7: Team 7 | E7: - | F7: Team 4 | G7: Sa/So | I7: __.__ | J7: Uhr | K7: __ | M7: 6. | N7: 25. Okt. 2025 (Sonntag Qualifikation DVV-Pokal) | O7: 6 | P7: Team 6
A8: =A7+1 -> 5 | B8: 9-2 | C8: > | D8: Team 9 | E8: - | F8: Team 2 | G8: Sa/So | I8: __.__ | J8: Uhr | K8: __ | M8: 7. | N8: 01./02. Nov. 2025 (Samstag Allerheiligen Spielverbot bis 18.00 Uhr) | O8: 7 | P8: Team 7
A9: =A8+1 -> 6 | B9: 12-10 | C9: > | D9: Team 12 | F9: Team 10 | G9: Sa/So | I9: __.__ | J9: Uhr | K9: __ | M9: 8. | N9: 15./16. Nov. 2025 (Sonntag Volkstrauertag Spielverbot bis 13.00 Uhr) | O9: 8 | P9: Team 8
M10: 9. | N10: 22./23. Nov. 2025 (Sonntag Totensonntag Spielverbot bis 18.00 Uhr) | O10: 9 | P10: Team 9
A11: 2.Spieltag | D11: =$N$3 -> 27. Sept. 2025 (Sonntag Halbfinale WVV-Pokal) | M11: 10. | N11: 06./07. Dez. 2025 | O11: 10 | P11: Team 10
A12: 7 | B12: 2-7 | C12: > | D12: =VLOOKUP(LEFT($B12,SEARCH("-",$B12)-1),$O$2:$P$13,2,0) -> Team 2 | E12: - | F12: =VLOOKUP(RIGHT($B12,LEN($B12)-SEARCH("-",$B12)),$O$2:$P$13,2,0) -> Team 7 | G12: Sa | I12: __.__ | J12: Uhr | K12: __ | M12: 11. | N12: 13./14. Dez. 2025 | O12: 11 | P12: Team 11
A13: =A12+1 -> 8 | B13: 4-5 | C13: > | D13: Team 4 | E13: - | F13: Team 5 | G13: Sa | I13: __.__ | J13: Uhr | K13: __ | M13: 12. | N13: 10./11. Jan. 2026 | O13: 12 | P13: Team 12
A14: =A13+1 -> 9 | B14: 6-3 | C14: > | D14: Team 6 | E14: - | F14: Team 3 | G14: Sa | I14: __.__ | J14: Uhr | K14: __ | M14: 13. | N14: 17./18. Jan. 2026
A15: =A14+1 -> 10 | B15: 8-12 | C15: > | D15: Team 8 | E15: - | F15: Team 12 | G15: Sa | I15: __.__ | J15: Uhr | K15: __ | M15: 14. | N15: 24./25. Jan. 2026
A16: =A15+1 -> 11 | B16: 10-1 | C16: > | D16: Team 10 | E16: - | F16: Team 1 | G16: Sa | I16: __.__ | J16: Uhr | K16: __ | M16: 15. | N16: 31. Jan./01. Feb. 2026
A17: =A16+1 -> 12 | B17: 11-9 | C17: > | D17: Team 11 | E17: - | F17: Team 9 | G17: Sa | I17: __.__ | J17: Uhr | K17: __ | M17: 16. | N17: 07./08. Feb. 2026
M18: 17. | N18: 14./15. Feb. 2026 (Sonntag Karneval)
A19: 3.Spieltag | D19: =$N$4 -> 04./05. Okt. 2025 | M19: 18. | N19: 21./22. Feb. 2026
A20: 13 | B20: 1-9 | C20: > | D20: =VLOOKUP(LEFT($B20,SEARCH("-",$B20)-1),$O$2:$P$13,2,0) -> Team 1 | E20: - | F20: =VLOOKUP(RIGHT($B20,LEN($B20)-SEARCH("-",$B20)),$O$2:$P$13,2,0) -> Team 9 | G20: Sa/So | I20: __.__ | J20: Uhr | K20: __ | M20: 19. | N20: 07./08. Mär. 2026
A21: =A20+1 -> 14 | B21: 3-4 | C21: > | D21: Team 3 | E21: - | F21: Team 4 | G21: Sa/So | I21: __.__ | J21: Uhr | K21: __ | M21: 20. | N21: 21./22. Mär. 2026
A22: =A21+1 -> 15 | B22: 5-2 | C22: > | D22: Team 5 | E22: - | F22: Team 2 | G22: Sa/So | I22: __.__ | J22: Uhr | K22: __ | M22: 21. | N22: 28./29. Mär. 2026
A23: =A22+1 -> 16 | B23: 7-11 | C23: > | D23: Team 7 | E23: - | F23: Team 11 | G23: Sa/So | I23: __.__ | J23: Uhr | K23: __ | M23: 22. | N23: 11. Apr. 2026 (Samstag zentrale Ansetzung)
A24: =A23+1 -> 17 | B24: 10-8 | C24: > | D24: Team 10 | E24: - | F24: Team 8 | G24: Sa/So | I24: __.__ | J24: Uhr | K24: __
A25: =A24+1 -> 18 | B25: 12-6 | C25: > | D25: Team 12 | E25: - | F25: Team 6 | G25: Sa/So | I25: __.__ | J25: Uhr | K25: __
A27: 4.Spieltag | D27: =$N$5 -> 11. Okt. 2025 (Sonntag WVV-Pokalfinale)
A28: 19 | B28: 2-3 | C28: > | D28: =VLOOKUP(LEFT($B28,SEARCH("-",$B28)-1),$O$2:$P$13,2,0) -> Team 2 | E28: - | F28: =VLOOKUP(RIGHT($B28,LEN($B28)-SEARCH("-",$B28)),$O$2:$P$13,2,0) -> Team 3 | G28: Sa | I28: __.__ | J28: Uhr | K28: __
A29: =A28+1 -> 20 | B29: 4-12 | C29: > | D29: Team 4 | E29: - | F29: Team 12 | G29: Sa | I29: __.__ | J29: Uhr | K29: __
A30: =A29+1 -> 21 | B30: 6-10 | C30: > | D30: Team 6 | E30: - | F30: Team 10 | G30: Sa | I30: __.__ | J30: Uhr | K30: __
A31: =A30+1 -> 22 | B31: 8-1 | C31: > | D31: Team 8 | E31: - | F31: Team 1 | G31: Sa | I31: __.__ | J31: Uhr | K31: __
A32: =A31+1 -> 23 | B32: 9-7 | C32: > | D32: Team 9 | E32: - | F32: Team 7 | G32: Sa | I32: __.__ | J32: Uhr | K32: __
A33: =A32+1 -> 24 | B33: 11-5 | C33: > | D33: Team 11 | E33: - | F33: Team 5 | G33: Sa | I33: __.__ | J33: Uhr | K33: __
A35: 5.Spieltag | D35: =$N$6 -> 18./19. Okt. 2025
A36: 25 | B36: 1-7 | C36: > | D36: =VLOOKUP(LEFT($B36,SEARCH("-",$B36)-1),$O$2:$P$13,2,0) -> Team 1 | E36: - | F36: =VLOOKUP(RIGHT($B36,LEN($B36)-SEARCH("-",$B36)),$O$2:$P$13,2,0) -> Team 7 | G36: Sa/So | I36: __.__ | J36: Uhr | K36: __
A37: =A36+1 -> 26 | B37: 3-11 | C37: > | D37: Team 3 | E37: - | F37: Team 11 | G37: Sa/So | I37: __.__ | J37: Uhr | K37: __
A38: =A37+1 -> 27 | B38: 5-9 | C38: > | D38: Team 5 | E38: - | F38: Team 9 | G38: Sa/So | I38: __.__ | J38: Uhr | K38: __
A39: =A38+1 -> 28 | B39: 8-6 | C39: > | D39: Team 8 | E39: - | F39: Team 6 | G39: Sa/So | I39: __.__ | J39: Uhr | K39: __
A40: =A39+1 -> 29 | B40: 10-4 | C40: > | D40: Team 10 | E40: - | F40: Team 4 | G40: Sa/So | I40: __.__ | J40: Uhr | K40: __
A41: =A40+1 -> 30 | B41: 12-2 | C41: > | D41: Team 12 | E41: - | F41: Team 2 | G41: Sa/So | I41: __.__ | J41: Uhr | K41: __
A43: 6.Spieltag | D43: =$N$7 -> 25. Okt. 2025 (Sonntag Qualifikation DVV-Pokal)
A44: 31 | B44: 2-10 | C44: > | D44: =VLOOKUP(LEFT($B44,SEARCH("-",$B44)-1),$O$2:$P$13,2,0) -> Team 2 | E44: - | F44: =VLOOKUP(RIGHT($B44,LEN($B44)-SEARCH("-",$B44)),$O$2:$P$13,2,0) -> Team 10 | G44: Sa | I44: __.__ | J44: Uhr | K44: __
A45: =A44+1 -> 32 | B45: 4-8 | C45: > | D45: Team 4 | E45: - | F45: Team 8 | G45: Sa | I45: __.__ | J45: Uhr | K45: __
A46: =A45+1 -> 33 | B46: 6-1 | C46: > | D46: Team 6 | E46: - | F46: Team 1 | G46: Sa | I46: __.__ | J46: Uhr | K46: __
A47: =A46+1 -> 34 | B47: 7-5 | C47: > | D47: Team 7 | E47: - | F47: Team 5 | G47: Sa | I47: __.__ | J47: Uhr | K47: __
A48: =A47+1 -> 35 | B48: 9-3 | C48: > | D48: Team 9 | E48: - | F48: Team 3 | G48: Sa | I48: __.__ | J48: Uhr | K48: __
A49: =A48+1 -> 36 | B49: 11-12 | C49: > | D49: Team 11 | E49: - | F49: Team 12 | G49: Sa | I49: __.__ | J49: Uhr | K49: __
A51: 7.Spieltag | D51: =$N$8 -> 01./02. Nov. 2025 (Samstag Allerheiligen Spielverbot bis 18.00 Uhr)
A52: 37 | B52: 1-5 | C52: > | D52: =VLOOKUP(LEFT($B52,SEARCH("-",$B52)-1),$O$2:$P$13,2,0) -> Team 1 | E52: - | F52: =VLOOKUP(RIGHT($B52,LEN($B52)-SEARCH("-",$B52)),$O$2:$P$13,2,0) -> Team 5 | G52: Sa/So | I52: __.__ | J52: Uhr | K52: __
A53: =A52+1 -> 38 | B53: 3-7 | C53: > | D53: Team 3 | E53: - | F53: Team 7 | G53: Sa/So | I53: __.__ | J53: Uhr | K53: __
A54: =A53+1 -> 39 | B54: 6-4 | C54: > | D54: Team 6 | E54: - | F54: Team 4 | G54: Sa/So | I54: __.__ | J54: Uhr | K54: __
A55: =A54+1 -> 40 | B55: 8-2 | C55: > | D55: Team 8 | E55: - | F55: Team 2 | G55: Sa/So | I55: __.__ | J55: Uhr | K55: __
A56: =A55+1 -> 41 | B56: 10-11 | C56: > | D56: Team 10 | E56: - | F56: Team 11 | G56: Sa/So | I56: __.__ | J56: Uhr | K56: __
A57: =A56+1 -> 42 | B57: 12-9 | C57: > | D57: Team 12 | E57: - | F57: Team 9 | G57: Sa/So | I57: __.__ | J57: Uhr | K57: __
A59: 8.Spieltag | D59: =$N$9 -> 15./16. Nov. 2025 (Sonntag Volkstrauertag Spielverbot bis 13.00 Uhr)
A60: 43 | B60: 2-6 | C60: > | D60: =VLOOKUP(LEFT($B60,SEARCH("-",$B60)-1),$O$2:$P$13,2,0) -> Team 2 | E60: - | F60: =VLOOKUP(RIGHT($B60,LEN($B60)-SEARCH("-",$B60)),$O$2:$P$13,2,0) -> Team 6 | G60: Sa/So | I60: __.__ | J60: Uhr | K60: __
A61: =A60+1 -> 44 | B61: 4-1 | C61: > | D61: Team 4 | E61: - | F61: Team 1 | G61: Sa/So | I61: __.__ | J61: Uhr | K61: __
A62: =A61+1 -> 45 | B62: 5-3 | C62: > | D62: Team 5 | E62: - | F62: Team 3 | G62: Sa/So | I62: __.__ | J62: Uhr | K62: __
A63: =A62+1 -> 46 | B63: 7-12 | C63: > | D63: Team 7 | E63: - | F63: Team 12 | G63: Sa/So | I63: __.__ | J63: Uhr | K63: __
A64: =A63+1 -> 47 | B64: 9-10 | C64: > | D64: Team 9 | E64: - | F64: Team 10 | G64: Sa/So | I64: __.__ | J64: Uhr | K64: __
A65: =A64+1 -> 48 | B65: 11-8 | C65: > | D65: Team 11 | E65: - | F65: Team 8 | G65: Sa/So | I65: __.__ | J65: Uhr | K65: __
A67: 9.Spieltag | D67: =$N$10 -> 22./23. Nov. 2025 (Sonntag Totensonntag Spielverbot bis 18.00 Uhr)
A68: 49 | B68: 1-3 | C68: > | D68: =VLOOKUP(LEFT($B68,SEARCH("-",$B68)-1),$O$2:$P$13,2,0) -> Team 1 | E68: - | F68: =VLOOKUP(RIGHT($B68,LEN($B68)-SEARCH("-",$B68)),$O$2:$P$13,2,0) -> Team 3 | G68: Sa | I68: __.__ | J68: Uhr | K68: __
A69: =A68+1 -> 50 | B69: 4-2 | C69: > | D69: Team 4 | E69: - | F69: Team 2 | G69: Sa | I69: __.__ | J69: Uhr | K69: __
A70: =A69+1 -> 51 | B70: 6-11 | C70: > | D70: Team 6 | E70: - | F70: Team 11 | G70: Sa | I70: __.__ | J70: Uhr | K70: __
A71: =A70+1 -> 52 | B71: 8-9 | C71: > | D71: Team 8 | E71: - | F71: Team 9 | G71: Sa | I71: __.__ | J71: Uhr | K71: __
A72: =A71+1 -> 53 | B72: 10-7 | C72: > | D72: Team 10 | E72: - | F72: Team 7 | G72: Sa | I72: __.__ | J72: Uhr | K72: __
A73: =A72+1 -> 54 | B73: 12-5 | C73: > | D73: Team 12 | E73: - | F73: Team 5 | G73: Sa | I73: __.__ | J73: Uhr | K73: __
A75: 10.Spieltag | D75: =$N$11 -> 06./07. Dez. 2025
A76: 55 | B76: 1-2 | C76: > | D76: =VLOOKUP(LEFT($B76,SEARCH("-",$B76)-1),$O$2:$P$13,2,0) -> Team 1 | E76: - | F76: =VLOOKUP(RIGHT($B76,LEN($B76)-SEARCH("-",$B76)),$O$2:$P$13,2,0) -> Team 2 | G76: Sa/So | I76: __.__ | J76: Uhr | K76: __
A77: =A76+1 -> 56 | B77: 3-12 | C77: > | D77: Team 3 | E77: - | F77: Team 12 | G77: Sa/So | I77: __.__ | J77: Uhr | K77: __
A78: =A77+1 -> 57 | B78: 5-10 | C78: > | D78: Team 5 | E78: - | F78: Team 10 | G78: Sa/So | I78: __.__ | J78: Uhr | K78: __
A79: =A78+1 -> 58 | B79: 7-8 | C79: > | D79: Team 7 | E79: - | F79: Team 8 | G79: Sa/So | I79: __.__ | J79: Uhr | K79: __
A80: =A79+1 -> 59 | B80: 9-6 | C80: > | D80: Team 9 | E80: - | F80: Team 6 | G80: Sa/So | I80: __.__ | J80: Uhr | K80: __
A81: =A80+1 -> 60 | B81: 11-4 | C81: > | D81: Team 11 | E81: - | F81: Team 4 | G81: Sa/So | I81: __.__ | J81: Uhr | K81: __
A83: 11.Spieltag | D83: =$N$12 -> 13./14. Dez. 2025
A84: 61 | B84: 2-11 | C84: > | D84: =VLOOKUP(LEFT($B84,SEARCH("-",$B84)-1),$O$2:$P$13,2,0) -> Team 2 | E84: - | F84: =VLOOKUP(RIGHT($B84,LEN($B84)-SEARCH("-",$B84)),$O$2:$P$13,2,0) -> Team 11 | G84: Sa/So | I84: __.__ | J84: Uhr | K84: __
A85: =A84+1 -> 62 | B85: 4-9 | C85: > | D85: Team 4 | E85: - | F85: Team 9 | G85: Sa/So | I85: __.__ | J85: Uhr | K85: __
A86: =A85+1 -> 63 | B86: 6-7 | C86: > | D86: Team 6 | E86: - | F86: Team 7 | G86: Sa/So | I86: __.__ | J86: Uhr | K86: __
A87: =A86+1 -> 64 | B87: 8-5 | C87: > | D87: Team 8 | E87: - | F87: Team 5 | G87: Sa/So | I87: __.__ | J87: Uhr | K87: __
A88: =A87+1 -> 65 | B88: 10-3 | C88: > | D88: Team 10 | E88: - | F88: Team 3 | G88: Sa/So | I88: __.__ | J88: Uhr | K88: __
A89: =A88+1 -> 66 | B89: 12-1 | C89: > | D89: Team 12 | E89: - | F89: Team 1 | G89: Sa/So | I89: __.__ | J89: Uhr | K89: __
A91: #### Mit > gekennzeichnete Mannschaften haben Heimrecht ####
A93: =A1 -> DVV-Spielplan: Dritte und Regionalliga Frauen/Männer | G93: =G1 -> Saison 2025/26 | K93: Rückrunde
K94: Halle
A95: 12.Spieltag | D95: =$N$13 -> 10./11. Jan. 2026
A96: 67 | B96: 2-9 | C96: > | D96: =VLOOKUP(LEFT($B96,SEARCH("-",$B96)-1),$O$2:$P$13,2,0) -> Team 2 | E96: - | F96: =VLOOKUP(RIGHT($B96,LEN($B96)-SEARCH("-",$B96)),$O$2:$P$13,2,0) -> Team 9 | G96: Sa/So | I96: __.__ | J96: Uhr | K96: __
A97: =A96+1 -> 68 | B97: 4-7 | C97: > | D97: Team 4 | E97: - | F97: Team 7 | G97: Sa/So | I97: __.__ | J97: Uhr | K97: __
A98: =A97+1 -> 69 | B98: 6-5 | C98: > | D98: Team 6 | E98: - | F98: Team 5 | G98: Sa/So | I98: __.__ | J98: Uhr | K98: __
A99: =A98+1 -> 70 | B99: 8-3 | C99: > | D99: Team 8 | E99: - | F99: Team 3 | G99: Sa/So | I99: __.__ | J99: Uhr | K99: __
A100: =A99+1 -> 71 | B100: 10-12 | C100: > | D100: Team 10 | E100: - | F100: Team 12 | G100: Sa/So | I100: __.__ | J100: Uhr | K100: __
A101: =A100+1 -> 72 | B101: 11-1 | C101: > | D101: Team 11 | E101: - | F101: Team 1 | G101: Sa/So | I101: __.__ | J101: Uhr | K101: __
A103: 13.Spieltag | D103: =$N$14 -> 17./18. Jan. 2026
A104: 73 | B104: 1-10 | C104: > | D104: =VLOOKUP(LEFT($B104,SEARCH("-",$B104)-1),$O$2:$P$13,2,0) -> Team 1 | E104: - | F104: =VLOOKUP(RIGHT($B104,LEN($B104)-SEARCH("-",$B104)),$O$2:$P$13,2,0) -> Team 10 | G104: Sa/So | I104: __.__ | J104: Uhr | K104: __
A105: =A104+1 -> 74 | B105: 3-6 | C105: > | D105: Team 3 | E105: - | F105: Team 6 | G105: Sa/So | I105: __.__ | J105: Uhr | K105: __
A106: =A105+1 -> 75 | B106: 5-4 | C106: > | D106: Team 5 | E106: - | F106: Team 4 | G106: Sa/So | I106: __.__ | J106: Uhr | K106: __
A107: =A106+1 -> 76 | B107: 7-2 | C107: > | D107: Team 7 | E107: - | F107: Team 2 | G107: Sa/So | I107: __.__ | J107: Uhr | K107: __
A108: =A107+1 -> 77 | B108: 9-11 | C108: > | D108: Team 9 | E108: - | F108: Team 11 | G108: Sa/So | I108: __.__ | J108: Uhr | K108: __
A109: =A108+1 -> 78 | B109: 12-8 | C109: > | D109: Team 12 | E109: - | F109: Team 8 | G109: Sa/So | I109: __.__ | J109: Uhr | K109: __
A111: 14.Spieltag | D111: =$N$15 -> 24./25. Jan. 2026
A112: 79 | B112: 2-5 | C112: > | D112: =VLOOKUP(LEFT($B112,SEARCH("-",$B112)-1),$O$2:$P$13,2,0) -> Team 2 | E112: - | F112: =VLOOKUP(RIGHT($B112,LEN($B112)-SEARCH("-",$B112)),$O$2:$P$13,2,0) -> Team 5 | G112: Sa/So | I112: __.__ | J112: Uhr | K112: __
A113: =A112+1 -> 80 | B113: 4-3 | C113: > | D113: Team 4 | E113: - | F113: Team 3 | G113: Sa/So | I113: __.__ | J113: Uhr | K113: __
A114: =A113+1 -> 81 | B114: 6-12 | C114: > | D114: Team 6 | E114: - | F114: Team 12 | G114: Sa/So | I114: __.__ | J114: Uhr | K114: __
A115: =A114+1 -> 82 | B115: 8-10 | C115: > | D115: Team 8 | E115: - | F115: Team 10 | G115: Sa/So | I115: __.__ | J115: Uhr | K115: __
A116: =A115+1 -> 83 | B116: 9-1 | C116: > | D116: Team 9 | E116: - | F116: Team 1 | G116: Sa/So | I116: __.__ | J116: Uhr | K116: __
A117: =A116+1 -> 84 | B117: 11-7 | C117: > | D117: Team 11 | E117: - | F117: Team 7 | G117: Sa/So | I117: __.__ | J117: Uhr | K117: __
A119: 15.Spieltag | D119: =$N$16 -> 31. Jan./01. Feb. 2026
A120: 85 | B120: 1-8 | C120: > | D120: =VLOOKUP(LEFT($B120,SEARCH("-",$B120)-1),$O$2:$P$13,2,0) -> Team 1 | E120: - | F120: =VLOOKUP(RIGHT($B120,LEN($B120)-SEARCH("-",$B120)),$O$2:$P$13,2,0) -> Team 8 | G120: Sa/So | I120: __.__ | J120: Uhr | K120: __
A121: =A120+1 -> 86 | B121: 3-2 | C121: > | D121: Team 3 | E121: - | F121: Team 2 | G121: Sa/So | I121: __.__ | J121: Uhr | K121: __
A122: =A121+1 -> 87 | B122: 5-11 | C122: > | D122: Team 5 | E122: - | F122: Team 11 | G122: Sa/So | I122: __.__ | J122: Uhr | K122: __
A123: =A122+1 -> 88 | B123: 7-9 | C123: > | D123: Team 7 | E123: - | F123: Team 9 | G123: Sa/So | I123: __.__ | J123: Uhr | K123: __
A124: =A123+1 -> 89 | B124: 10-6 | C124: > | D124: Team 10 | E124: - | F124: Team 6 | G124: Sa/So | I124: __.__ | J124: Uhr | K124: __
A125: =A124+1 -> 90 | B125: 12-4 | C125: > | D125: Team 12 | E125: - | F125: Team 4 | G125: Sa/So | I125: __.__ | J125: Uhr | K125: __
A127: 16.Spieltag | D127: =$N$17 -> 07./08. Feb. 2026
A128: 91 | B128: 2-12 | C128: > | D128: =VLOOKUP(LEFT($B128,SEARCH("-",$B128)-1),$O$2:$P$13,2,0) -> Team 2 | E128: - | F128: =VLOOKUP(RIGHT($B128,LEN($B128)-SEARCH("-",$B128)),$O$2:$P$13,2,0) -> Team 12 | G128: Sa/So | I128: __.__ | J128: Uhr | K128: __
A129: =A128+1 -> 92 | B129: 4-10 | C129: > | D129: Team 4 | E129: - | F129: Team 10 | G129: Sa/So | I129: __.__ | J129: Uhr | K129: __
A130: =A129+1 -> 93 | B130: 6-8 | C130: > | D130: Team 6 | E130: - | F130: Team 8 | G130: Sa/So | I130: __.__ | J130: Uhr | K130: __
A131: =A130+1 -> 94 | B131: 7-1 | C131: > | D131: Team 7 | E131: - | F131: Team 1 | G131: Sa/So | I131: __.__ | J131: Uhr | K131: __
A132: =A131+1 -> 95 | B132: 9-5 | C132: > | D132: Team 9 | E132: - | F132: Team 5 | G132: Sa/So | I132: __.__ | J132: Uhr | K132: __
A133: =A132+1 -> 96 | B133: 11-3 | C133: > | D133: Team 11 | E133: - | F133: Team 3 | G133: Sa/So | I133: __.__ | J133: Uhr | K133: __
A135: 17.Spieltag | D135: =$N$18 -> 14./15. Feb. 2026 (Sonntag Karneval)
A136: 97 | B136: 1-6 | C136: > | D136: =VLOOKUP(LEFT($B136,SEARCH("-",$B136)-1),$O$2:$P$13,2,0) -> Team 1 | E136: - | F136: =VLOOKUP(RIGHT($B136,LEN($B136)-SEARCH("-",$B136)),$O$2:$P$13,2,0) -> Team 6 | G136: Sa/So | I136: __.__ | J136: Uhr | K136: __
A137: =A136+1 -> 98 | B137: 3-9 | C137: > | D137: Team 3 | E137: - | F137: Team 9 | G137: Sa/So | I137: __.__ | J137: Uhr | K137: __
A138: =A137+1 -> 99 | B138: 5-7 | C138: > | D138: Team 5 | E138: - | F138: Team 7 | G138: Sa/So | I138: __.__ | J138: Uhr | K138: __
A139: =A138+1 -> 100 | B139: 8-4 | C139: > | D139: Team 8 | E139: - | F139: Team 4 | G139: Sa/So | I139: __.__ | J139: Uhr | K139: __
A140: =A139+1 -> 101 | B140: 10-2 | C140: > | D140: Team 10 | E140: - | F140: Team 2 | G140: Sa/So | I140: __.__ | J140: Uhr | K140: __
A141: =A140+1 -> 102 | B141: 12-11 | C141: > | D141: Team 12 | E141: - | F141: Team 11 | G141: Sa/So | I141: __.__ | J141: Uhr | K141: __
A143: 18.Spieltag | D143: =$N$19 -> 21./22. Feb. 2026
A144: 103 | B144: 2-8 | C144: > | D144: =VLOOKUP(LEFT($B144,SEARCH("-",$B144)-1),$O$2:$P$13,2,0) -> Team 2 | E144: - | F144: =VLOOKUP(RIGHT($B144,LEN($B144)-SEARCH("-",$B144)),$O$2:$P$13,2,0) -> Team 8 | G144: Sa/So | I144: __.__ | J144: Uhr | K144: __
A145: =A144+1 -> 104 | B145: 4-6 | C145: > | D145: Team 4 | E145: - | F145: Team 6 | G145: Sa/So | I145: __.__ | J145: Uhr | K145: __
A146: =A145+1 -> 105 | B146: 5-1 | C146: > | D146: Team 5 | E146: - | F146: Team 1 | G146: Sa/So | I146: __.__ | J146: Uhr | K146: __
A147: =A146+1 -> 106 | B147: 7-3 | C147: > | D147: Team 7 | E147: - | F147: Team 3 | G147: Sa/So | I147: __.__ | J147: Uhr | K147: __
A148: =A147+1 -> 107 | B148: 9-12 | C148: > | D148: Team 9 | E148: - | F148: Team 12 | G148: Sa/So | I148: __.__ | J148: Uhr | K148: __
A149: =A148+1 -> 108 | B149: 11-10 | C149: > | D149: Team 11 | E149: - | F149: Team 10 | G149: Sa/So | I149: __.__ | J149: Uhr | K149: __
A151: 19.Spieltag | D151: =$N$20 -> 07./08. Mär. 2026
A152: 109 | B152: 1-4 | C152: > | D152: =VLOOKUP(LEFT($B152,SEARCH("-",$B152)-1),$O$2:$P$13,2,0) -> Team 1 | E152: - | F152: =VLOOKUP(RIGHT($B152,LEN($B152)-SEARCH("-",$B152)),$O$2:$P$13,2,0) -> Team 4 | G152: Sa/So | I152: __.__ | J152: Uhr | K152: __
A153: =A152+1 -> 110 | B153: 3-5 | C153: > | D153: Team 3 | E153: - | F153: Team 5 | G153: Sa/So | I153: __.__ | J153: Uhr | K153: __
A154: =A153+1 -> 111 | B154: 6-2 | C154: > | D154: Team 6 | E154: - | F154: Team 2 | G154: Sa/So | I154: __.__ | J154: Uhr | K154: __
A155: =A154+1 -> 112 | B155: 8-11 | C155: > | D155: Team 8 | E155: - | F155: Team 11 | G155: Sa/So | I155: __.__ | J155: Uhr | K155: __
A156: =A155+1 -> 113 | B156: 10-9 | C156: > | D156: Team 10 | E156: - | F156: Team 9 | G156: Sa/So | I156: __.__ | J156: Uhr | K156: __
A157: =A156+1 -> 114 | B157: 12-7 | C157: > | D157: Team 12 | E157: - | F157: Team 7 | G157: Sa/So | I157: __.__ | J157: Uhr | K157: __
A159: 20.Spieltag | D159: =$N$21 -> 21./22. Mär. 2026
A160: 115 | B160: 2-4 | C160: > | D160: =VLOOKUP(LEFT($B160,SEARCH("-",$B160)-1),$O$2:$P$13,2,0) -> Team 2 | E160: - | F160: =VLOOKUP(RIGHT($B160,LEN($B160)-SEARCH("-",$B160)),$O$2:$P$13,2,0) -> Team 4 | G160: Sa/So | I160: __.__ | J160: Uhr | K160: __
A161: =A160+1 -> 116 | B161: 3-1 | C161: > | D161: Team 3 | E161: - | F161: Team 1 | G161: Sa/So | I161: __.__ | J161: Uhr | K161: __
A162: =A161+1 -> 117 | B162: 5-12 | C162: > | D162: Team 5 | E162: - | F162: Team 12 | G162: Sa/So | I162: __.__ | J162: Uhr | K162: __
A163: =A162+1 -> 118 | B163: 7-10 | C163: > | D163: Team 7 | E163: - | F163: Team 10 | G163: Sa/So | I163: __.__ | J163: Uhr | K163: __
A164: =A163+1 -> 119 | B164: 9-8 | C164: > | D164: Team 9 | E164: - | F164: Team 8 | G164: Sa/So | I164: __.__ | J164: Uhr | K164: __
A165: =A164+1 -> 120 | B165: 11-6 | C165: > | D165: Team 11 | E165: - | F165: Team 6 | G165: Sa/So | I165: __.__ | J165: Uhr | K165: __
A167: 21.Spieltag | D167: =$N$22 -> 28./29. Mär. 2026
A168: 121 | B168: 2-1 | C168: > | D168: =VLOOKUP(LEFT($B168,SEARCH("-",$B168)-1),$O$2:$P$13,2,0) -> Team 2 | E168: - | F168: =VLOOKUP(RIGHT($B168,LEN($B168)-SEARCH("-",$B168)),$O$2:$P$13,2,0) -> Team 1 | G168: Sa/So | I168: __.__ | J168: Uhr | K168: __
A169: =A168+1 -> 122 | B169: 4-11 | C169: > | D169: Team 4 | E169: - | F169: Team 11 | G169: Sa/So | I169: __.__ | J169: Uhr | K169: __
A170: =A169+1 -> 123 | B170: 6-9 | C170: > | D170: Team 6 | E170: - | F170: Team 9 | G170: Sa/So | I170: __.__ | J170: Uhr | K170: __
A171: =A170+1 -> 124 | B171: 8-7 | C171: > | D171: Team 8 | E171: - | F171: Team 7 | G171: Sa/So | I171: __.__ | J171: Uhr | K171: __
A172: =A171+1 -> 125 | B172: 10-5 | C172: > | D172: Team 10 | E172: - | F172: Team 5 | G172: Sa/So | I172: __.__ | J172: Uhr | K172: __
A173: =A172+1 -> 126 | B173: 12-3 | C173: > | D173: Team 12 | E173: - | F173: Team 3 | G173: Sa/So | I173: __.__ | J173: Uhr | K173: __
A175: 22.Spieltag | D175: =$N$23 -> 11. Apr. 2026 (Samstag zentrale Ansetzung)
A176: 127 | B176: 1-12 | C176: > | D176: =VLOOKUP(LEFT($B176,SEARCH("-",$B176)-1),$O$2:$P$13,2,0) -> Team 1 | E176: - | F176: =VLOOKUP(RIGHT($B176,LEN($B176)-SEARCH("-",$B176)),$O$2:$P$13,2,0) -> Team 12 | G176: Sa | I176: __.__ | J176: Uhr | K176: __
A177: =A176+1 -> 128 | B177: 3-10 | C177: > | D177: Team 3 | E177: - | F177: Team 10 | G177: Sa | I177: __.__ | J177: Uhr | K177: __
A178: =A177+1 -> 129 | B178: 5-8 | C178: > | D178: Team 5 | E178: - | F178: Team 8 | G178: Sa | I178: __.__ | J178: Uhr | K178: __
A179: =A178+1 -> 130 | B179: 7-6 | C179: > | D179: Team 7 | E179: - | F179: Team 6 | G179: Sa | I179: __.__ | J179: Uhr | K179: __
A180: =A179+1 -> 131 | B180: 9-4 | C180: > | D180: Team 9 | E180: - | F180: Team 4 | G180: Sa | I180: __.__ | J180: Uhr | K180: __
A181: =A180+1 -> 132 | B181: 11-2 | C181: > | D181: Team 11 | E181: - | F181: Team 2 | G181: Sa | I181: __.__ | J181: Uhr | K181: __
A183: Relegation: 01. und 03. Mai 2026
A185: #### Mit > gekennzeichnete Mannschaften haben Heimrecht ####
